fUSD/lending_fUSD_20250930
["ID","MTS","AMOUNT","RATE_DAILY","PERIOD"]
[388559611,1759240363912,-893.75,0.00020547,2]
[388559612,1759240363922,-500.0,0.00020547,2]
[388559613,1759240363932,-9367.62,0.00020547,2]
[388559614,1759240363943,-500.0,0.00020547,2]
[388559615,1759240363958,-500.0,0.00020547,2]
[388559616,1759240363970,-500.0,0.00020547,2]
[388559617,1759240363981,-6111.21,0.00020547,2]
[388559618,1759240363991,-805.4,0.00020547,2]
[388559619,1759240364003,-500.0,0.00020547,2]
[388559620,1759240364013,-500.0,0.00020547,2]
[388559621,1759240364023,-787.29,0.00020547,2]
[388559622,1759240364033,-3187.48,0.00020547,2]
[388559623,1759240364045,-599.39,0.00020547,2]
[388559624,1759240364055,-500.0,0.00020547,2]
[388559625,1759240364065,-966.27,0.00020547,2]
[388559626,1759240364076,-5803.24,0.00020547,2]
[388559627,1759240364086,-11810.4,0.00020547,2]
[388559628,1759240364097,-500.0,0.00020547,2]
[388559629,1759240364107,-2300.54,0.00020547,2]
[388559630,1759240364119,-500.0,0.00020547,2]
[388559631,1759240364130,-3419.59,0.00020547,2]
[388559632,1759240364140,-2771.3,0.00020547,2]
[388559633,1759240364151,-500.0,0.00020547,2]
[388559634,1759240364162,-5786.2,0.00020547,2]
[388559635,1759240364173,-3222.59,0.00020547,2]
[388559636,1759240364183,-8791.84,0.00020547,2]
[388559637,1759240364194,-1093.65,0.00020547,2]
[388559638,1759240364205,-4612.6,0.00020547,2]
[388559639,1759240364216,-500.0,0.00020547,2]
[388559640,1759240364226,-500.0,0.00020547,2]
[388559641,1759240364236,-500.0,0.00020547,2]
[388559642,1759240364247,-3605.76,0.00020547,2]
[388559643,1759240364258,-3520.57,0.00020547,2]
[388559644,1759240364269,-3604.25,0.00020547,2]
[388559645,1759240364281,-4033.8,0.00020547,2]
[388559646,1759240364291,-965.82,0.00020547,2]
[388559647,1759240364302,-20780.06,0.00020547,2]
[388559648,1759240364313,-500.0,0.00020547,2]
[388559649,1759240364323,-500.0,0.00020547,2]
[388559650,1759240364334,-738.87,0.00020547,2]
[388559651,1759240364344,-610.04,0.00020547,2]
[388559652,1759240364354,-2288.45,0.00020547,2]
[388559653,1759240364366,-511.94,0.00020547,2]
[388559654,1759240364377,-899.45,0.00020547,2]
[388559655,1759240364387,-6082.65,0.00020547,2]
[388559656,1759240364397,-546.47,0.00020547,2]
[388559657,1759240364407,-500.0,0.00020547,2]
[388559658,1759240364417,-2792.99,0.00020547,2]
[388559659,1759240364427,-2345.29,0.00020547,2]
[388559660,1759240364437,-836.63,0.00020547,2]
[388559661,1759240364447,-500.0,0.00020547,2]
[388559662,1759240364457,-3532.55,0.00020547,2]
[388559663,1759240364466,-2744.05,0.00020547,2]
[388559664,1759240364477,-324.02182034,0.00020547,2]
[388559665,1759240364488,-2886.79,0.00020547,2]
[388559666,1759240364499,-708.23,0.00020547,2]
[388559667,1759240364510,-500.0,0.00020547,2]
[388559668,1759240364520,-10430.65,0.00020547,2]
[388559669,1759240364531,-500.0,0.00020547,2]
[388559670,1759240364542,-854.6,0.00020547,2]
[388559671,1759240364553,-500.0,0.00020547,2]
[388559672,1759240364563,-1762.85,0.00020547,2]
[388559673,1759240364573,-500.0,0.00020547,2]
[388559674,1759240364584,-500.0,0.00020547,2]
[388559675,1759240364595,-647.1749172,0.00020547,2]
[388559676,1759240364605,-4052.2,0.00020547,2]
[388559677,1759240364618,-697.8,0.00020547,2]
[388559678,1759240364629,-4990.77,0.00020547,2]
[388559679,1759240364640,-1859.04,0.00020547,2]
[388559680,1759240364649,-4685.47,0.00020547,2]
[388559681,1759240364660,-3466.13,0.00020547,2]
[388559682,1759240364671,-500.0,0.00020547,2]
[388559683,1759240364681,-2922.79,0.00020547,2]
[388559684,1759240364692,-500.0,0.00020547,2]
[388559685,1759240364702,-509.44,0.00020547,2]
[388559686,1759240364713,-3442.87,0.00020547,2]
[388559687,1759240364723,-500.0,0.00020547,2]
[388559688,1759240364734,-344.67931669,0.00020547,2]
[388559689,1759240364744,-500.0,0.00020547,2]
[388559690,1759240364754,-4827.63,0.00020547,2]
[388559691,1759240364764,-526.47,0.00020547,2]
[388559692,1759240364775,-929.49,0.00020547,2]
[388559693,1759240364785,-500.0,0.00020547,2]
[388559694,1759240364795,-576.16,0.00020547,2]
[388559695,1759240364805,-1406.64,0.00020547,2]
[388559696,1759240364815,-500.0,0.00020547,2]
[388559697,1759240364826,-1954.99,0.00020547,2]
[388559698,1759240364836,-540.37,0.00020547,2]
[388559699,1759240364847,-500.0,0.00020547,2]
[388559700,1759240364857,-1043.47,0.00020547,2]
[388559701,1759240364869,-3925.81,0.00020547,2]
[388559702,1759240364878,-1045.94,0.00020547,2]
[388559703,1759240364889,-645.22,0.00020547,2]
[388559704,1759240364899,-3484.65,0.00020547,2]
[388559705,1759240364910,-500.0,0.00020547,2]
[388559706,1759240364920,-2283.42,0.00020547,2]
[388559707,1759240364931,-2811.19,0.00020547,2]
[388559708,1759240364942,-2895.27,0.00020547,2]
[388559709,1759240364954,-2816.6,0.00020547,2]
[388559710,1759240364963,-535.69,0.00020547,2]
[388559711,1759240364973,-1338.26,0.00020547,2]
[388559712,1759240364983,-2999.63,0.00020547,2]
[388559713,1759240364993,-500.0,0.00020547,2]
[388559714,1759240365003,-19762.18,0.00020547,2]
[388559715,1759240365013,-3113.64,0.00020547,2]
[388559716,1759240365023,-1174.76,0.00020547,2]
[388559717,1759240365033,-4837.09,0.00020547,2]
[388559718,1759240365042,-947.63,0.00020547,2]
[388559719,1759240365052,-3304.23,0.00020547,2]
[388559720,1759240365061,-886.09,0.00020547,2]
[388559721,1759240365070,-500.0,0.00020547,2]
[388559722,1759240365080,-1427.41,0.00020547,2]
[388559723,1759240365090,-2936.04,0.00020547,2]
[388559724,1759240365099,-1072.81,0.00020547,2]
[388559725,1759240365108,-5730.05,0.00020547,2]
[388559726,1759240365119,-9933.01,0.00020547,2]
[388559727,1759240365129,-8309.91,0.00020547,2]
[388559728,1759240365139,-1695.32,0.00020547,2]
[388559729,1759240365149,-1068.35,0.00020547,2]
[388559730,1759240365159,-1099.77,0.00020547,2]
[388559731,1759240365169,-1860.95,0.00020547,2]
[388559732,1759240365179,-3886.98,0.00020547,2]
[388559733,1759240365189,-2834.78,0.00020547,2]
[388559734,1759240365201,-719.55,0.00020547,2]
[388559735,1759240365211,-5464.08,0.00020547,2]
[388559736,1759240365221,-4218.11,0.00020547,2]
[388559737,1759240365232,-1340.22,0.00020547,2]
[388559738,1759240365242,-7280.81,0.00020547,2]
[388559739,1759240365253,-3179.64,0.00020547,2]
[388559740,1759240365264,-4400.59,0.00020547,2]
[388559741,1759240365275,-3118.0,0.00020547,2]
[388559742,1759240365285,-1382.23,0.00020547,2]
[388559743,1759240365297,-1085.95,0.00020547,2]
[388559744,1759240365310,-5606.8,0.00020547,2]
[388559745,1759240365320,-500.0,0.00020547,2]
[388559746,1759240365330,-2191.69,0.00020547,2]
[388559747,1759240365340,-500.0,0.00020547,2]
[388559748,1759240365351,-1121.59,0.00020547,2]
[388559749,1759240365361,-500.0,0.00020547,2]
[388559750,1759240365372,-1821.92,0.00020547,2]
[388559751,1759240365384,-500.0,0.00020547,2]
[388559752,1759240365394,-500.0,0.00020547,2]
[388559753,1759240365404,-4022.76,0.00020547,2]
[388559754,1759240365415,-500.0,0.00020547,2]
[388559755,1759240365425,-3228.92,0.00020547,2]
[388559756,1759240365434,-1155.95,0.00020547,2]
[388559757,1759240365444,-500.0,0.00020547,2]
[388559758,1759240365455,-500.0,0.00020547,2]
[388559759,1759240365464,-500.0,0.00020547,2]
[388559760,1759240365474,-715.09,0.00020547,2]
[388559761,1759240365484,-2361.75,0.00020547,2]
[388559762,1759240365494,-1154.61,0.00020547,2]
[388559763,1759240365504,-500.0,0.00020547,2]
[388559764,1759240365514,-3696.96,0.00020547,2]
[388559765,1759240365525,-22451.0,0.00020547,2]
[388559766,1759240365535,-500.0,0.00020547,2]
[388559767,1759240365545,-2532.13,0.00020547,2]
[388559768,1759240365555,-500.0,0.00020547,2]
[388559769,1759240365565,-1235.06,0.00020547,2]
[388559770,1759240365576,-550.71,0.00020547,2]
[388559771,1759240365586,-500.0,0.00020547,2]
[388559772,1759240365597,-500.0,0.00020547,2]
[388559773,1759240365607,-1249.63,0.00020547,2]
[388559774,1759240365618,-4834.6,0.00020547,2]
[388559775,1759240365629,-2260.51,0.00020547,2]
[388559776,1759240365639,-500.0,0.00020547,2]
[388559777,1759240365649,-500.0,0.00020547,2]
[388559778,1759240365659,-500.0,0.00020547,2]
[388559779,1759240365668,-6286.35,0.00020547,2]
[388559780,1759240365678,-6442.41,0.00020547,2]
[388559781,1759240365689,-2171.4,0.00020547,2]
[388559782,1759240365700,-8170.98,0.00020547,2]
[388559783,1759240365710,-2781.0,0.00020547,2]
[388559784,1759240365720,-771.77,0.00020547,2]
[388559785,1759240365731,-500.0,0.00020547,2]
[388559786,1759240365741,-663.14,0.00020547,2]
[388559787,1759240365751,-500.0,0.00020547,2]
[388559788,1759240365762,-2939.81,0.00020547,2]
[388559789,1759240365771,-500.0,0.00020547,2]
[388559790,1759240365782,-3571.8,0.00020547,2]
[388559791,1759240365792,-3082.09,0.00020547,2]
[388559792,1759240365802,-4639.88,0.00020547,2]
[388559793,1759240365811,-4726.46,0.00020547,2]
[388559794,1759240365821,-1404.94,0.00020547,2]
[388559795,1759240365831,-500.0,0.00020547,2]
[388559796,1759240365840,-934.2,0.00020547,2]
[388559797,1759240365850,-4502.44,0.00020547,2]
[388559798,1759240365859,-500.0,0.00020547,2]
[388559799,1759240365871,-3406.59,0.00020547,2]
[388559800,1759240365880,-500.0,0.00020547,2]
[388559801,1759240365890,-500.0,0.00020547,2]
[388559802,1759240365899,-500.0,0.00020547,2]
[388559803,1759240365910,-540.5,0.00020547,2]
[388559804,1759240365920,-4690.1,0.00020547,2]
[388559805,1759240365930,-500.0,0.00020547,2]
[388559806,1759240365939,-1038.94,0.00020547,2]
[388559807,1759240365949,-3481.91,0.00020547,2]
[388559808,1759240365959,-6488.25,0.00020547,2]
[388559809,1759240365970,-3323.26,0.00020547,2]
[388559810,1759240365981,-500.0,0.00020547,2]
[388559811,1759240365994,-1369.59,0.00020547,2]
[388559812,1759240366004,-5530.75,0.00020547,2]
[388559813,1759240366014,-500.0,0.00020547,2]
[388559814,1759240366024,-1181.95,0.00020547,2]
[388559815,1759240366034,-1390.21,0.00020547,2]
[388559816,1759240366044,-1361.61,0.00020547,2]
[388559817,1759240366054,-500.0,0.00020547,2]
[388559818,1759240366063,-500.0,0.00020547,2]
[388559819,1759240366077,-5411.44,0.00020547,2]
[388559820,1759240366087,-1581.45,0.00020547,2]
[388559821,1759240366097,-3964.99,0.00020547,2]
[388559822,1759240366107,-3748.58,0.00020547,2]
[388559823,1759240366119,-2676.52,0.00020547,2]
[388559824,1759240366129,-654.98,0.00020547,2]
[388559825,1759240366139,-730.34,0.00020547,2]
[388559826,1759240366149,-3552.31,0.00020547,2]
[388559827,1759240366160,-2765.4,0.00020547,2]
[388559828,1759240366170,-939.77,0.00020547,2]
[388559829,1759240366181,-1000.94,0.00020547,2]
[388559830,1759240366193,-500.0,0.00020547,2]
[388559831,1759240366372,-1934.59,0.00020547,2]
[388559832,1759240366383,-1474.11,0.00020547,2]
[388559833,1759240366393,-552.85,0.00020547,2]
[388559834,1759240366404,-500.0,0.00020547,2]
[388559835,1759240366415,-511.55,0.00020547,2]
[388559836,1759240366425,-511.55,0.00020547,2]
[388559837,1759240366435,-2157.39,0.00020547,2]
[388559838,1759240366445,-18492.31,0.00020547,2]
[388559839,1759240366455,-5681.34,0.00020547,2]
[388559840,1759240366465,-1186.56,0.00020547,2]
[388559841,1759240366475,-500.0,0.00020547,2]
[388559842,1759240366485,-541.6,0.00020547,2]
[388559843,1759240366494,-500.0,0.00020547,2]
[388559844,1759240366505,-500.0,0.00020547,2]
[388559845,1759240366515,-1119.61,0.00020547,2]
[388559846,1759240366526,-1172.72,0.00020547,2]
[388559847,1759240366536,-5357.55,0.00020547,2]
[388559848,1759240366545,-500.0,0.00020547,2]
[388559849,1759240366557,-583.56,0.00020547,2]
[388559850,1759240366567,-3680.77,0.00020547,2]
[388559851,1759240366577,-7317.79,0.00020547,2]
[388559852,1759240366586,-500.0,0.00020547,2]
[388559853,1759240366596,-2723.4,0.00020547,2]
[388559854,1759240366606,-1429.01,0.00020547,2]
[388559855,1759240366618,-688.57,0.00020547,2]
[388559856,1759240366627,-863.38,0.00020547,2]
[388559857,1759240366637,-1249.51,0.00020547,2]
[388559858,1759240366646,-2415.34,0.00020547,2]
[388559859,1759240366656,-505.11,0.00020547,2]
[388559860,1759240366668,-739.07,0.00020547,2]
[388559861,1759240366679,-3504.09,0.00020547,2]
[388559862,1759240366690,-5494.11,0.00020547,2]
[388559863,1759240366700,-1836.14,0.00020547,2]
[388559864,1759240366710,-995.39,0.00020547,2]
[388559865,1759240366720,-6705.33,0.00020547,2]
[388559866,1759240366729,-500.0,0.00020547,2]
[388559867,1759240366740,-6781.75,0.00020547,2]
[388559868,1759240366750,-7000.6,0.00020547,2]
[388559869,1759240366760,-4925.05,0.00020547,2]
[388559870,1759240366771,-1562.72,0.00020547,2]
[388559871,1759240366781,-500.0,0.00020547,2]
[388559872,1759240366791,-1497.08,0.00020547,2]
[388559873,1759240366802,-8103.56,0.00020547,2]
[388559874,1759240366811,-500.0,0.00020547,2]
[388559875,1759240366821,-3281.17,0.00020547,2]
[388559876,1759240366832,-4136.69,0.00020547,2]
[388559877,1759240366843,-500.0,0.00020547,2]
[388559878,1759240366854,-1715.07,0.00020547,2]
[388559879,1759240366864,-500.0,0.00020547,2]
[388559880,1759240366875,-5894.74,0.00020547,2]
[388559881,1759240366884,-5362.41,0.00020547,2]
[388559882,1759240366895,-1341.41,0.00020547,2]
[388559883,1759240366904,-2755.02,0.00020547,2]
[388559884,1759240366914,-500.0,0.00020547,2]
[388559885,1759240366925,-10208.2,0.00020547,2]
[388559886,1759240366935,-858.6,0.00020547,2]
[388559887,1759240366944,-3373.16,0.00020547,2]
[388559888,1759240366954,-647.37,0.00020547,2]
[388559889,1759240366964,-1570.13,0.00020547,2]
[388559890,1759240366973,-1122.49,0.00020547,2]
[388559891,1759240366983,-1556.2,0.00020547,2]
[388559892,1759240366992,-500.0,0.00020547,2]
[388559893,1759240367002,-3871.47,0.00020547,2]
[388559894,1759240367013,-1684.89,0.00020547,2]
[388559895,1759240367023,-931.46,0.00020547,2]
[388559896,1759240367034,-500.0,0.00020547,2]
[388559897,1759240367044,-4011.93,0.00020547,2]
[388559898,1759240367054,-500.0,0.00020547,2]
[388559899,1759240367064,-500.0,0.00020547,2]
[388559900,1759240367073,-500.0,0.00020547,2]
[388559901,1759240367082,-500.0,0.00020547,2]
[388559902,1759240367092,-12816.21,0.00020547,2]
[388559903,1759240367102,-546.61128582,0.00020547,2]
[388559904,1759240367111,-500.0,0.00020547,2]
[388559905,1759240367122,-500.0,0.00020547,2]
[388559906,1759240367132,-500.0,0.00020547,2]
[388559907,1759240367142,-694.15,0.00020547,2]
[388559908,1759240367152,-6873.68,0.00020547,2]
[388559909,1759240367162,-1162.06,0.00020547,2]
[388559910,1759240367172,-500.0,0.00020547,2]
[388559911,1759240367181,-2523.64,0.00020547,2]
[388559912,1759240367191,-500.0,0.00020547,2]
[388559913,1759240367201,-500.0,0.00020547,2]
[388559914,1759240367211,-3703.76,0.00020547,2]
[388559915,1759240367221,-3826.94,0.00020547,2]
[388559916,1759240367231,-895.74,0.00020547,2]
[388559917,1759240367240,-2564.83,0.00020547,2]
[388559918,1759240367250,-955.85,0.00020547,2]
[388559919,1759240367260,-1051.65,0.00020547,2]
[388559920,1759240367271,-997.01,0.00020547,2]
[388559921,1759240367281,-1238.43,0.00020547,2]
[388559922,1759240367291,-1006.62,0.00020547,2]
[388559923,1759240367305,-6876.3,0.00020547,2]
[388559924,1759240367315,-529.91,0.00020547,2]
[388559925,1759240367324,-1776.53,0.00020547,2]
[388559926,1759240367334,-5950.02,0.00020547,2]
[388559927,1759240367343,-3828.19,0.00020547,2]
[388559928,1759240367354,-1367.04,0.00020547,2]
[388559929,1759240367365,-500.0,0.00020547,2]
[388559930,1759240367378,-500.0,0.00020547,2]
[388559931,1759240367387,-9467.31,0.00020547,2]
[388559932,1759240367397,-1184.13,0.00020547,2]
[388559933,1759240367406,-500.0,0.00020547,2]
[388559934,1759240367415,-4922.75,0.00020547,2]
[388559935,1759240367426,-500.0,0.00020547,2]
[388559936,1759240367435,-500.0,0.00020547,2]
[388559937,1759240367445,-2070.05,0.00020547,2]
[388559938,1759240367454,-500.0,0.00020547,2]
[388559939,1759240367464,-500.0,0.00020547,2]
[388559940,1759240367475,-500.0,0.00020547,2]
[388559941,1759240367485,-18773.04,0.00020547,2]
[388559942,1759240367496,-5298.65,0.00020547,2]
[388559943,1759240367508,-849.98,0.00020547,2]
[388559944,1759240367519,-20867.18,0.00020547,2]
[388559945,1759240367529,-500.0,0.00020547,2]
[388559946,1759240367539,-500.0,0.00020547,2]
[388559947,1759240367549,-4442.33,0.00020547,2]
[388559948,1759240367559,-1635.21,0.00020547,2]
[388559949,1759240367569,-500.0,0.00020547,2]
[388559950,1759240367579,-680.87,0.00020547,2]
[388559951,1759240367589,-3515.11,0.00020547,2]
[388559952,1759240367599,-732.05,0.00020547,2]
[388559953,1759240367609,-496.93924318,0.00020547,2]
[388559954,1759240367623,-500.0,0.00020547,2]
[388559955,1759240367633,-500.0,0.00020547,2]
[388559956,1759240367643,-3586.23,0.00020547,2]
[388559957,1759240367653,-1344.1,0.00020547,2]
[388559958,1759240367663,-500.0,0.00020547,2]
[388559959,1759240367673,-921.26,0.00020547,2]
[388559960,1759240367683,-571.69,0.00020547,2]
[388559961,1759240367693,-500.0,0.00020547,2]
[388559962,1759240367702,-112125.3065784,0.00020547,2]
[388559963,1759240367712,-500.0,0.00020548,2]
[388559964,1759240367721,-189.38,0.00020548,2]
[388559965,1759240367731,-21186.1,0.00020548,2]
[388559966,1759240367741,-177.9,0.00020556,2]
[388559967,1759240367751,-350.0,0.00020568,2]
[388559968,1759240367762,-300.0,0.00020597,2]
[388559969,1759240367772,-1901.48234374,0.000206,2]
[388559970,1759240367782,-474.52590314,0.000206,3]
[388559971,1759240367792,-2229.07,0.00020637,2]
[388559972,1759240367801,-326.22,0.00020649,2]
[388559973,1759240367811,-151.0,0.00020664,2]
[388559974,1759240367821,-193.3,0.00020672,2]
[388559975,1759240367831,-5000.0,0.00020706,2]
[388559976,1759240367840,-185.0,0.00020722,2]
[388559977,1759240367850,-5000.0,0.00020725,2]
[388559978,1759240367859,-2943.99,0.00020755,2]
[388559979,1759240367870,-1253.39,0.00020784,2]
[388559980,1759240367879,-2474.18,0.00020796,2]
[388559981,1759240367888,-5000.0,0.00020798,2]
[388559982,1759240367898,-1901.48234374,0.000208,2]
[388559983,1759240367908,-504.83913649,0.00020808,2]
[388559984,1759240367918,-494.0,0.00020809,2]
[388559985,1759240367928,-1178.0,0.00020809,2]
[388559986,1759240367937,-451.0,0.00020809,2]
[388559987,1759240367947,-216.78635046,0.00020816,2]
[388559988,1759240367957,-2000.0,0.00020816,2]
[388559989,1759240367967,-2000.0,0.00020816,2]
[388559990,1759240367977,-2000.0,0.00020816,2]
[388559991,1759240367986,-2000.0,0.00020816,2]
[388559992,1759240367997,-2000.0,0.00020816,2]
[388559993,1759240368007,-2000.0,0.00020816,2]
[388559994,1759240368018,-2000.0,0.00020816,2]
[388559995,1759240368028,-1807.23411504,0.00020816,2]
[388559996,1759240368037,-2000.0,0.00020816,2]
[388559997,1759240368047,-939.45,0.00020821,2]
[388559998,1759240368057,-742.62,0.00020821,2]
[388559999,1759240368067,-839.87,0.00020821,2]
[388560000,1759240368076,-699.23,0.00020821,2]
[388560001,1759240368087,-1043.7,0.00020821,2]
[388560002,1759240368097,-1734.33,0.00020821,2]
[388560003,1759240368107,-1038.99,0.00020821,2]
[388560004,1759240368116,-942.79,0.00020821,2]
[388560005,1759240368125,-500.0,0.00020821,2]
[388560006,1759240368135,-1383.29,0.00020821,2]
[388560007,1759240368145,-500.0,0.00020821,2]
[388560008,1759240368154,-2539.98,0.00020821,2]
[388560009,1759240368164,-500.0,0.00020821,2]
[388560010,1759240368174,-777.62,0.00020821,2]
[388560011,1759240368184,-1690.1,0.00020821,2]
[388560012,1759240368193,-1124.22,0.00020821,2]
[388560013,1759240368202,-500.0,0.00020821,2]
[388560014,1759240368211,-500.0,0.00020821,2]
[388560015,1759240368221,-572.0,0.00020821,2]
[388560016,1759240368230,-2525.07,0.00020821,2]
[388560017,1759240368239,-500.0,0.00020821,2]
[388560018,1759240368248,-768.79,0.00020821,2]
[388560019,1759240368257,-900.96,0.00020821,2]
[388560020,1759240368266,-926.98,0.00020821,2]
[388560021,1759240368275,-363.34113488,0.00020821,2]
[388560022,1759240368285,-575.5,0.00020821,2]
[388560023,1759240368294,-593.6,0.00020821,2]
[388560024,1759240368303,-924.04,0.00020821,2]
[388560025,1759240368312,-885.54,0.00020821,2]
[388560026,1759240368323,-1751.25,0.00020821,2]
[388560027,1759240368332,-1678.28,0.00020821,2]
[388560028,1759240368341,-1751.25,0.00020821,2]
[388560029,1759240368351,-500.0,0.00020821,2]
[388560030,1759240368360,-500.0,0.00020821,2]
[388560031,1759240368372,-500.0,0.00020821,2]
[388560032,1759240368382,-500.0,0.00020821,2]
[388560033,1759240368392,-500.0,0.00020821,2]
[388560034,1759240368402,-500.0,0.00020821,2]
[388560035,1759240368412,-500.0,0.00020821,2]
[388560036,1759240368421,-976.58,0.00020821,2]
[388560037,1759240368430,-2413.69,0.00020821,2]
[388560038,1759240368440,-500.0,0.00020821,2]
[388560039,1759240368449,-500.0,0.00020821,2]
[388560040,1759240368459,-943.48,0.00020821,2]
[388560041,1759240368469,-2013.23,0.00020821,2]
[388560042,1759240368478,-500.0,0.00020821,2]
[388560043,1759240368487,-500.0,0.00020821,2]
[388560044,1759240368497,-500.0,0.00020821,2]
[388560045,1759240368507,-500.0,0.00020821,2]
[388560046,1759240368518,-797.98,0.00020821,2]
[388560047,1759240368528,-764.73,0.00020821,2]
[388560048,1759240368537,-1232.09,0.00020821,2]
[388560049,1759240368547,-500.0,0.00020821,2]
[388560050,1759240368556,-693.13,0.00020821,2]
[388560051,1759240368565,-500.0,0.00020821,2]
[388560052,1759240368574,-1084.87,0.00020821,2]
[388560053,1759240368584,-585.96,0.00020821,2]
[388560054,1759240368594,-1406.34,0.00020821,2]
[388560055,1759240368603,-500.0,0.00020821,2]
[388560056,1759240368613,-500.0,0.00020821,2]
[388560057,1759240368626,-818.87,0.00020821,2]
[388560058,1759240368636,-500.0,0.00020821,2]
[388560059,1759240368645,-500.0,0.00020821,2]
[388560060,1759240368656,-1793.65,0.00020821,2]
[388560061,1759240368666,-500.0,0.00020821,2]
[388560062,1759240368675,-1043.03,0.00020821,2]
[388560063,1759240368684,-999.57,0.00020821,2]
[388560064,1759240368694,-500.0,0.00020821,2]
[388560065,1759240368704,-915.43,0.00020821,2]
[388560066,1759240368714,-1611.94,0.00020821,2]
[388560067,1759240368724,-1490.93,0.00020821,2]
[388560068,1759240368734,-702.03,0.00020821,2]
[388560069,1759240368744,-1069.66,0.00020821,2]
[388560070,1759240368754,-679.98,0.00020821,2]
[388560071,1759240368764,-751.5,0.00020821,2]
[388560072,1759240368774,-720.19,0.00020821,2]
[388560073,1759240368785,-500.0,0.00020821,2]
[388560074,1759240368795,-612.97,0.00020821,2]
[388560075,1759240368805,-718.97,0.00020821,2]
[388560076,1759240368815,-500.0,0.00020821,2]
[388560077,1759240368825,-226.27280952,0.00020821,2]
[388560078,1759240368834,-500.0,0.00020821,2]
[388560079,1759240368844,-549.25,0.00020821,2]
[388560080,1759240368854,-500.0,0.00020821,2]
[388560081,1759240368864,-1031.1,0.00020821,2]
[388560082,1759240368876,-500.0,0.00020821,2]
[388560083,1759240368885,-723.07,0.00020821,2]
[388560084,1759240368896,-500.0,0.00020821,2]
[388560085,1759240368905,-798.07,0.00020821,2]
[388560086,1759240368915,-500.0,0.00020821,2]
[388560087,1759240368925,-699.79,0.00020821,2]
[388560088,1759240368934,-746.04,0.00020821,2]
[388560089,1759240368944,-534.54,0.00020821,2]
[388560090,1759240368954,-500.0,0.00020821,2]
[388560091,1759240368964,-500.0,0.00020821,2]
[388560092,1759240368974,-355.07802433,0.00020821,2]
[388560093,1759240368983,-500.0,0.00020821,2]
[388560094,1759240368993,-500.0,0.00020821,2]
[388560095,1759240369003,-500.0,0.00020821,2]
[388560096,1759240369012,-500.0,0.00020821,2]
[388560097,1759240369022,-1901.3,0.00020821,2]
[388560098,1759240369032,-1901.3,0.00020821,2]
[388560099,1759240369042,-996.63,0.00020821,2]
[388560100,1759240369052,-500.0,0.00020821,2]
[388560101,1759240369061,-500.0,0.00020821,2]
[388560102,1759240369071,-500.0,0.00020821,2]
[388560103,1759240369081,-500.0,0.00020821,2]
[388560104,1759240369091,-547.29,0.00020821,2]
[388560105,1759240369101,-547.29,0.00020821,2]
[388560106,1759240369111,-500.0,0.00020821,2]
[388560107,1759240369123,-160.93645404,0.00020821,2]
[388560108,1759240369133,-500.0,0.00020821,2]
[388560109,1759240369142,-500.0,0.00020821,2]
[388560110,1759240369152,-500.0,0.00020821,2]